[Event "26th Triest Festival 2024"]
[Site "Triest"]
[Date "2024.09.02"]
[Round "1.1"]
[White "Bosiocic, Marin"]
[Black "Gregoric, Andraz"]
[Result "1-0"]
[Annotator "ChessBase"]
[ECO "A24"]
[WhiteElo "2555"]
[BlackElo "2175"]
[PlyCount "43"]
[EventDate "2024.09.02"]
[EventType "swiss"]
[EventCountry "ITA"]
[SourceTitle "playchess.com"]
[Source "ChessBase"]
[SourceQuality "1"]
[TimeControl "5400+30"]

1. Nf3 {[%emt 0:00:04]} Nf6 {[%emt 0:00:05]} 2. g3 {[%emt 0:00:12]} g6 {[%emt 0:00:54]} 3. Bg2 {[%emt 0:00:09]} Bg7 {[%emt 0:00:07]} 4. c4 {[%emt 0:00:23]} d6 {[%emt 0:01:00]} 5. O-O {[%emt 0:00:09]} e5 {[%emt 0:07:13]} 6. Nc3 {[%emt 0:05:47]} c6 {[%emt 0:02:00]} 7. d3 {[%emt 0:02:09]} O-O {[%emt 0:00:57]} 8. b4 {[%emt 0:02:53]} Qc7 {[%emt 0:10:15]} 9. b5 {[%emt 0:06:27]} h6 {[%emt 0:06:44]} 10. bxc6 {[%emt 0:01:42]} bxc6 {[%emt 0:00:21]} 11. Ba3 {[%emt 0:00:14]} Be6 {[%emt 0:03:48]} 12. Qa4 {[%emt 0:02:57]} Nfd7 {[%emt 0:11:55]} 13. Nd2 {[%emt 0:01:52]} f5 {[%emt 0:06:46]} 14. Rab1 {[%emt 0:03:05]} a5 {[%emt 0:13:11]} 15. Rfc1 {[%emt 0:03:12]} Rd8 {[%emt 0:09:56]} 16. Nd5 {[%emt 0:02:53]} Bxd5 {[%emt 0:00:05]} 17. cxd5 {[%emt 0:00:09]} c5 {[%emt 0:00:22]} 18. Nc4 {[%emt 0:00:12]} Nf6 {[%emt 0:10:32]} 19. Nxe5 {[%emt 0:02:11]} dxe5 {[%emt 0:00:55]} 20. d6 {[%emt 0:00:41]} Qa7 {[%emt 0:00:03]} 21. Bxc5 {[%emt 0:01:04]} Qa6 {[%emt 0:00:03]} 22. Bb7 {[%emt 0:00:22]} 1-0

[Event "26th Triest Festival 2024"]
[Site "Triest"]
[Date "2024.09.02"]
[Round "1.2"]
[White "Schnell, Simon"]
[Black "Baklan, Vladimir"]
[Result "0-1"]
[Annotator "TA"]
[ECO "A21"]
[WhiteElo "2174"]
[BlackElo "2535"]
[PlyCount "38"]
[EventDate "2024.09.02"]
[EventType "swiss"]
[EventCountry "ITA"]
[SourceTitle "playchess.com"]
[Source "ChessBase"]
[SourceQuality "1"]
[TimeControl "5400+30"]

{[%evp 11,38,0,0,0,0,-143,-131,-156,-149,-145,-157,-146,-147,-127,-94,-133,-47,-436,-363,-454,-441,-550,-530,-597,-583,-981,-1039,-1941,-1366]} 1. d4 {[%emt 0:00:04]} d6 {[%emt 0:00:05]} 2. c4 {[%emt 0:00:28]} e5 {[%emt 0:00:06]} 3. Nc3 {[%emt 0:00:31]} exd4 {[%emt 0:01:26]} 4. Qxd4 {[%emt 0:00:10]} Nc6 {[%emt 0:00:02]} 5. Qd2 {[%emt 0:00:17]} Nf6 {[%emt 0:00:15]} 6. b3 {[%emt 0:02:14]} a5 {[%emt 0:00:50][%cal Ba7a5,Ba5a4,Ba4a3][%mdl 32]} 7. Bb2 {[%emt 0:02:37]} a4 {[%emt 0:04:50]} 8. g3 {[%emt 0:13:34]} (8. bxa4 Be6 $15) (8. Rd1 $11) 8... a3 $1 $17 {[%emt 0:13:46]} 9. Bc1 {[%emt 0:00:41] [#] Black is clearly better.} d5 {[%emt 0:00:05][%mdl 512]} 10. cxd5 {[%emt 0:15:13] [#]} Bb4 $1 {[%emt 0:07:50]} 11. Qe3+ {[%emt 0:09:55]} (11. dxc6 $2 {too greedy.} Nd5 12. Nxd5 (12. cxb7 $2 Bxb7 13. Nxd5 Bxd2+ 14. Bxd2 Bxd5 $19) 12... Bxd2+ 13. Bxd2 Qxd5 $19) 11... Ne7 {[%emt 0:10:30][%mdl 1024] Black has strong compensation.} 12. Bd2 {[%emt 0:05:27]} O-O {[%emt 0:00:09]} (12... Nfxd5 13. Nxd5 Bxd2+ 14. Qxd2 $19) 13. Bg2 {[%emt 0:03:14] [#]} Re8 $1 $36 {[%emt 0:01:29][%mdl 2048] Black has some pressure. Black is more active.} 14. Qd4 {[%emt 0:05:37][%mdl 8192] Loses the game.} (14. Rd1 $1 $15) 14... c5 $19 {[%emt 0:02:00]} 15. Qd3 {[%emt 0:02:24] [#]} Bf5 {[%emt 0:03:08] Black is clearly winning.} 16. Qc4 {[%emt 0:04:01] [#]} b5 $1 {[%emt 0:14:00][%mdl 512]} 17. Qxb5 {[%emt 0:04:34]} (17. Qf4 Qd7) 17... Nexd5 {[%emt 0:00:22]} 18. Qc4 {[%emt 0:05:45] [#]} Nxc3 $1 {[%emt 0:04:31]} 19. Bxa8 {[%emt 0:03:21]} (19. Bxc3 Be6) 19... Bd3 {[%emt 0:01:09] Weighted Error Value: White=1.20/Black=0.00 (flawless) .  Loses game:     	White=1     	---        Mistake:       	White=1     	---        Inaccurate:     	White=2     	---        OK:         	White=4     	Black=5      Best:        	White=2     	Black=3      Strong:       	---       	Black=3      Brilliant:      	---       	Black=1} 0-1

[Event "26th Triest Festival 2024"]
[Site "Triest"]
[Date "2024.09.02"]
[Round "1.3"]
[White "Tiviakov, Sergei"]
[Black "Belli, Giorgio"]
[Result "1-0"]
[Annotator "TA"]
[ECO "B80"]
[WhiteElo "2531"]
[BlackElo "2168"]
[PlyCount "65"]
[EventDate "2024.09.02"]
[EventType "swiss"]
[EventCountry "ITA"]
[SourceTitle "playchess.com"]
[Source "ChessBase"]
[SourceQuality "1"]
[TimeControl "5400+30"]

{[%evp 16,65,14,-14,6,10,11,-3,-6,14,11,0,38,44,37,40,58,59,71,65,68,75,75,75,152,146,162,66,70,75,78,67,332,320,507,522,500,496,506,516,522,493,487,504,612,591,822,814,797,778,4894,4794]} 1. e4 {[%emt 0:00:02]} c5 {[%emt 0:02:05]} 2. Nc3 {[%emt 0:00:23]} d6 {[%emt 0:00:30]} 3. Nge2 {[%emt 0:00:07]} Nf6 {[%emt 0:00:43]} 4. g3 {[%emt 0:00:14]} e6 {[%emt 0:00:52]} 5. Bg2 {[%emt 0:00:07]} Be7 {[%emt 0:00:07]} 6. d4 {[%emt 0:00:05]} cxd4 {[%emt 0:00:28]} 7. Nxd4 {[%emt 0:00:05]} O-O {[%emt 0:01:02]} 8. O-O {[%emt 0:00:07]} Nc6 {[%emt 0:04:38]} 9. Nde2 {[%emt 0:02:45]} Qc7 {[%emt 0:03:22]} 10. Nb5 {[%emt 0:07:04]} Qb8 {[%emt 0:01:39]} 11. b3 {[%emt 0:02:32]} a6 {[%emt 0:03:31] The position is equal.} 12. Nbd4 {[%emt 0:00:08]} Rd8 {[%emt 0:04:55]} 13. c4 {[%emt 0:03:56]} h6 {[%emt 0:13:04]} 14. Bb2 {[%emt 0:05:21]} e5 {[%emt 0:08:33]} 15. Nf5 {[%emt 0:07:43]} Bf8 {[%emt 0:04:00]} 16. Nc3 {[%emt 0:01:45]} b5 {[%emt 0:01:00]} 17. Nd5 {[%emt 0:00:33]} (17. Qf3 {feels hotter.} bxc4 18. Nxh6+ gxh6 19. Qxf6 cxb3 20. Nd5) 17... Nxd5 {[%emt 0:06:14]} 18. cxd5 {[%emt 0:01:35]} ({Of course not} 18. Qxd5 $6 Ne7 19. Nxe7+ Bxe7 $11) 18... Ne7 {[%emt 0:01:32]} 19. Ne3 {[%emt 0:04:10] White is much more active.} f5 {[%emt 0:02:19]} (19... a5 $142) 20. exf5 $16 {[%emt 0:00:18]} Nxf5 {[%emt 0:00:06]} 21. Nxf5 {[%emt 0:00:03]} ({White should play} 21. Qh5 $18 Kh7 22. Be4 (22. Nxf5 g6 $16)) 21... Bxf5 $14 {[%emt 0:00:08]} 22. f4 {[%emt 0:00:02] Strongly threatening fxe5.} Qa7+ {[%emt 0:01:56]} 23. Kh1 {[%emt 0:00:50]} exf4 {[%emt 0:00:15][%mdl 8192] Loses the game.} (23... Qd7 $1 $14) 24. Rxf4 $18 {[%emt 0:00:06]} Bg6 {[%emt 0:04:46]} (24... Qd7 $142 25. Qd4 Bg6) 25. Qg4 {[%emt 0:00:59] White is clearly winning.} Bf7 {[%emt 0:01:20]} 26. Raf1 {[%emt 0:00:34]} Qd7 {[%emt 0:01:03]} 27. Qf3 {[%emt 0:03:54][%cal Rf4f7]} Ra7 {[%emt 0:04:09]} 28. Bd4 {[%emt 0:01:35]} Rb7 {[%emt 0:00:06]} 29. h4 {[%emt 0:00:09]} Rc8 {[%emt 0:01:47]} 30. Rf2 {[%emt 0:04:25]} Rc5 {[%emt 0:01:02]} 31. Bxc5 {[%emt 0:00:39]} dxc5 {[%emt 0:00:04] [#]} 32. d6 $1 {[%emt 0:00:06]} Ra7 {[%emt 0:00:49] [#]} (32... Bxd6 33. Rxf7) 33. Rxf7 $1 {[%emt 0:00:09][%mdl 512] Weighted Error Value: White=0.06 (flawless) /Black=0.48.  Loses game:     	---       	Black=1      Mistake:       	White=1     	Black=2      Inaccurate:     	---       	Black=2      OK:         	White=11    	Black=10     Best:        	White=3     	---} 1-0

[Event "26th Triest Festival 2024"]
[Site "Triest"]
[Date "2024.09.02"]
[Round "1.4"]
[White "Candian, Lorenzo"]
[Black "Valsecchi, Alessio"]
[Result "0-1"]
[Annotator "TA"]
[ECO "B40"]
[WhiteElo "2164"]
[BlackElo "2475"]
[PlyCount "78"]
[EventDate "2024.09.02"]
[EventType "swiss"]
[EventCountry "ITA"]
[SourceTitle "playchess.com"]
[Source "ChessBase"]
[SourceQuality "1"]
[TimeControl "5400+30"]

{[%evp 9,78,0,0,-12,45,11,16,-2,0,6,22,20,19,41,31,18,39,38,29,28,69,64,74,52,43,57,52,40,45,41,29,31,75,71,93,74,75,76,120,124,209,47,43,47,47,44,39,-186,-189,-198,-197,-533,-517,-771,-240,-771,-672,-771,-765,-791,-791,-1339,-1219,-2129,-1906,-1593,-1514,-29970,-29969,-29951,-2455]} 1. e4 {[%emt 0:00:47]} c5 {[%emt 0:00:28]} 2. Nf3 {[%emt 0:00:18]} e6 {[%emt 0:00:22]} 3. g3 {[%emt 0:00:44]} Nc6 {[%emt 0:04:29]} 4. Bg2 {[%emt 0:00:08]} Nf6 {[%emt 0:07:33]} 5. d3 {[%emt 0:00:06]} d5 {[%emt 0:01:12]} 6. Qe2 {[%emt 0:00:06]} g6 {[%emt 0:01:02]} ({Black should try} 6... Be7 $11) 7. O-O {[%emt 0:11:28]} Bg7 {[%emt 0:00:06]} 8. e5 {[%emt 0:06:14][%cal Oc1g5] The position is equal.} Nd7 {[%emt 0:01:22]} 9. Bf4 {[%emt 0:00:06]} h6 {[%emt 0:01:51]} 10. h4 {[%emt 0:00:25]} g5 {[%emt 0:07:11]} 11. hxg5 {[%emt 0:04:50]} hxg5 {[%emt 0:00:19]} 12. Bxg5 {[%emt 0:01:25]} Nd4 {[%emt 0:01:46]} 13. Nxd4 {[%emt 0:09:45]} Qxg5 {[%emt 0:00:07]} 14. Nf3 {[%emt 0:01:31]} Qh5 {[%emt 0:02:18]} 15. Re1 {[%emt 0:01:18]} b6 {[%emt 0:10:20]} 16. Nbd2 {[%emt 0:02:30][%cal Bb1d2,Bd2c4,Bc4d6][%mdl 32]} Bb7 {[%emt 0:00:41]} 17. c3 {[%emt 0:04:00]} d4 {[%emt 0:03:15]} 18. cxd4 {[%emt 0:10:35]} (18. Nc4 {is more complex.} Ke7 19. cxd4 cxd4 20. Nh4) 18... cxd4 {[%emt 0:01:13][%cal Od7e5]} 19. Nc4 {[%emt 0:13:10] Threatens to win with Nd6+.} Kf8 {[%emt 0:02:02]} 20. a4 {[%emt 0:07:20] Strongly threatening Nh4.} (20. Nxd4 $2 Qh2+ 21. Kf1 Bxg2#) 20... Rc8 {[%emt 0:06:48]} 21. Nh4 $1 {[%emt 0:03:59]} (21. Nxd4 $2 Qh2+ 22. Kf1 Bxg2#) 21... Qxe2 {[%emt 0:03:40]} 22. Rxe2 {[%emt 0:00:09]} Ba6 {[%emt 0:00:24]} 23. Nd6 {[%emt 0:03:05]} Rd8 {[%emt 0:03:03]} 24. f4 {[%emt 0:02:22]} Nc5 {[%emt 0:01:34] [#]} (24... Bxd3 $16 25. Rd2 Ba6 (25... Nc5 $2 26. a5 $18)) 25. b4 $2 {[%emt 0:03:06]} (25. a5 $1 $18) 25... Nxd3 $14 {[%emt 0:02:06]} 26. b5 {[%emt 0:00:43]} Nxf4 $1 {[%emt 0:07:45]} 27. gxf4 {[%emt 0:00:03]} d3 {[%emt 0:00:22]} 28. Ree1 {[%emt 0:04:16] This costs White the game.} (28. Ng6+ $14 {stays ahead.} fxg6 29. Rea2 Rxd6 30. exd6 Bxa1 31. Rxa1) 28... Rxh4 $19 {[%emt 0:00:40]} 29. bxa6 {[%emt 0:00:01] [#]} Rxd6 {[%emt 0:00:13]} 30. exd6 $2 {[%emt 0:00:06]} (30. Rad1 {is more resistant.}) 30... Bd4+ {[%emt 0:00:07]} 31. Kf1 {[%emt 0:00:52]} Rxf4+ {[%emt 0:00:09]} 32. Bf3 {[%emt 0:00:00]} Rxf3+ {[%emt 0:03:49][%mdl 4096] Endgame. KRR-KRB} 33. Kg2 {[%emt 0:00:05]} Rf2+ {[%emt 0:00:07]} 34. Kg3 {[%emt 0:00:05]} Rc2 {[%emt 0:00:25][%cal Od3d2] ...d2! would now be deadly.} 35. Rab1 {[%emt 0:05:04]} Bf2+ {[%emt 0:00:55]} 36. Kf4 {[%emt 0:04:51]} Bxe1 {[%emt 0:00:26]} 37. Rxe1 {[%emt 0:00:47]} Rc6 {[%emt 0:01:34][%cal Od3d2] ( -> ...d2!)} 38. Ke5 {[%emt 0:00:58]} Rc5+ {[%emt 0:00:07]} 39. Ke4 {[%emt 0:00:10]} Rd5 {[%emt 0:28:09] Weighted Error Value: White=0.91/Black=0.12 (very precise) .  Loses game:     	White=1     	---        Missed win:     	White=1     	---        Mistake:       	White=1     	Black=2      Inaccurate:     	White=3     	Black=3      OK:         	White=10    	Black=10     Best:        	White=1     	Black=4      Strong:       	White=1     	Black=1} (39... d2 $142 40. Rd1 Rd5 41. Ke3 f5 (41... Rxd6 $2 42. Kf4 $19) 42. Kf4 Rxd6 43. Kg3 e5 44. Kh4 e4 45. Kg3 Rd3+ 46. Kg2 Ke7 47. Kf2 f4 48. Kf1 Rf3+ 49. Ke2 Re3+ 50. Kf1 Re1+ (50... Rd3 $2 51. a5 $19) 51. Rxe1 e3 52. Rb1 f3 53. Re1 dxe1=N (53... dxe1=R+ {leads to mate.} 54. Kxe1 e2 55. Kf2 Kf6 56. Ke1 Ke5 57. Kd2 Ke4 58. a5 bxa5 59. Ke1 a4 60. Kf2 a3 61. Ke1 a2 62. Kf2 a1=Q 63. Kg3 e1=Q+ 64. Kh3 Qh8+ 65. Kg4 Qhh4#) (53... Kd6 54. Rxe3 d1=Q+ 55. Kf2 $19) 54. Kxe1 e2 55. Kd2 Ke6 56. Ke1 Kf5 57. Kd2 Ke4 (57... Kf4 {is a self mate.} 58. a5 bxa5 59. Ke1 a4 60. Kd2 a3 61. Kd3 e1=Q 62. Kc4 Qa5 63. Kb3 a2 64. Kc4 a1=Q 65. Kd3 Q5c3#) 58. a5 bxa5 59. Ke1 a4 60. Kd2 a3 61. Kc2 e1=Q (61... e1=B {gets mated.} 62. Kb3 f2 63. Kxa3 f1=Q 64. Kb3 Qb5+ 65. Kc2 Qb4 66. Kc1 Kd3 67. Kd1 Qd2#) 62. Kb3 Qa5 (62... f2 63. Kc4 f1=Q+ 64. Kc5 Qc3+ 65. Kd6 Qff6+ 66. Kd7 Qcc6#) 63. Kc4 a2 (63... Qxa6+ 64. Kc5 a2 65. Kb4 a1=Q 66. Kc5 Qd4#) 64. Kb3 a1=Q 65. Kc4 Q1c3#) 0-1

[Event "26th Triest Festival 2024"]
[Site "Triest"]
[Date "2024.09.02"]
[Round "1.5"]
[White "Goh, Wei Ming Kevin"]
[Black "Kubik, Rafal"]
[Result "1/2-1/2"]
[Annotator "TA"]
[ECO "B52"]
[WhiteElo "2449"]
[BlackElo "2164"]
[PlyCount "58"]
[EventDate "2024.09.02"]
[EventType "swiss"]
[EventCountry "ITA"]
[SourceTitle "playchess.com"]
[Source "ChessBase"]
[SourceQuality "1"]
[TimeControl "5400+30"]

{[%evp 16,58,19,10,0,8,6,14,1,0,0,-42,-34,-62,-70,-86,-21,-8,-15,-49,-37,-31,-31,-32,-27,-26,-38,-30,-26,-34,-20,-15,0,0,0,0,0,0,0,0,0,0,0,0,0]} 1. e4 {[%emt 0:00:06]} c5 {[%emt 0:02:27]} 2. Nf3 {[%emt 0:02:42]} d6 {[%emt 0:00:06]} 3. Bb5+ {[%emt 0:04:42]} Bd7 {[%emt 0:00:09]} 4. Bxd7+ {[%emt 0:00:14]} Qxd7 {[%emt 0:00:10]} 5. O-O {[%emt 0:00:05]} Nc6 {[%emt 0:00:10]} 6. c3 {[%emt 0:00:53]} d5 {[%emt 0:00:28]} 7. exd5 {[%emt 0:01:04]} Qxd5 {[%emt 0:00:09]} 8. d4 {[%emt 0:00:07]} e6 {[%emt 0:04:08]} 9. Be3 {[%emt 0:00:22]} cxd4 {[%emt 0:02:17]} 10. Nxd4 {[%emt 0:01:30]} Nf6 {[%emt 0:03:05]} 11. Qa4 {[%emt 0:02:40]} Be7 {[%emt 0:10:02]} 12. Nb5 {[%emt 0:11:09]} (12. Nxc6 {simplifies} Qxc6 13. Qxc6+ bxc6 14. Nd2) 12... Rc8 {[%emt 0:02:58] Inhibits Nc7+.} 13. c4 {[%emt 0:03:24]} Qh5 {[%emt 0:15:29]} 14. Bxa7 {[%emt 0:03:55]} O-O {[%emt 0:01:40] [#] Strongly threatening ...Nxa7.} 15. Bb6 {[%emt 0:00:36]} Ne5 {[%emt 0:09:26]} (15... Nd7 $17 16. Be3 Nde5) 16. Nd2 $11 {[%emt 0:01:48]} Qe2 {[%emt 0:07:00][%csl LRc4,LRd2]} 17. Be3 {[%emt 0:32:48]} (17. Bd4 {simplifies} Nxc4 18. Nxc4 Qxc4 19. Qxc4 Rxc4 20. Rfd1) 17... Nxc4 {[%emt 0:02:47]} 18. Nd4 {[%emt 0:01:16]} Qd3 {[%emt 0:01:08]} ({Avoid the trap} 18... Nxb2 $2 19. Qb3 Qd3 20. Qxb2 $18) 19. Nxc4 {[%emt 0:00:43]} Rxc4 {[%emt 0:01:13]} 20. Rfd1 {[%emt 0:00:39][%cal Bf1d1,Bd1d3,Bd3b3,Bb3b7][%mdl 32]} Rxa4 {[%emt 0:01:13]} 21. Rxd3 {[%emt 0:00:01]} Nd5 {[%emt 0:00:44]} 22. Rb3 {[%emt 0:01:48]} Bf6 {[%emt 0:04:59]} 23. Nf3 {[%emt 0:05:11] The position is equal.} Rc8 {[%emt 0:04:51]} 24. Rxb7 {[%emt 0:01:50]} h6 {[%emt 0:00:23]} 25. Ne1 {[%emt 0:03:20]} Nxe3 {[%emt 0:02:51]} 26. fxe3 {[%emt 0:00:03]} Rd8 {[%emt 0:00:18]} 27. Nf3 {[%emt 0:01:18] Inhibits Rd2.} Rc8 {[%emt 0:00:20]} 28. Ne1 {[%emt 0:01:44] Against Rc2} Rd8 {[%emt 0:00:07]} 29. Nf3 {[%emt 0:01:10] Against Rd2} Rc8 {[%emt 0:00:08] Weighted Error Value: White=0.06 (flawless) /Black=0.07 (flawless) .  Mistake:       	---       	Black=1      Inaccurate:     	White=3     	---        OK:         	White=12    	Black=9      Best:        	White=2     	Black=1} 1/2-1/2

[Event "26th Triest Festival 2024"]
[Site "Triest"]
[Date "2024.09.02"]
[Round "1.6"]
[White "Centamore, Alberto"]
[Black "Doric, Darko"]
[Result "0-1"]
[Annotator "TA"]
[ECO "D30"]
[WhiteElo "2155"]
[BlackElo "2443"]
[PlyCount "70"]
[EventDate "2024.09.02"]
[EventType "swiss"]
[EventCountry "ITA"]
[SourceTitle "playchess.com"]
[Source "ChessBase"]
[SourceQuality "1"]
[TimeControl "5400+30"]

{[%evp 12,70,-6,-16,0,0,22,0,-2,-31,-14,-19,-17,-39,-38,-91,-98,-97,-97,-85,-83,-157,-160,-146,-145,-159,-148,-152,-114,-159,-144,-142,-133,-163,-54,-57,-54,-68,-83,-79,-80,-258,-250,-261,-255,-391,-390,-380,-320,-509,-481,-1678,-811,-883,-942,-942,-942,-942,-935,-899,-883]} 1. d4 {[%emt 0:00:05]} d5 {[%emt 0:00:06][%cal Bd7d5,Bd5c4][%mdl 32]} 2. c4 {[%emt 0:00:05]} e6 {[%emt 0:00:06]} 3. Nf3 {[%emt 0:00:11]} c6 {[%emt 0:00:09]} 4. g3 {[%emt 0:00:15]} dxc4 {[%emt 0:00:17]} 5. Bg2 {[%emt 0:00:24]} b5 {[%emt 0:00:06]} 6. O-O {[%emt 0:01:36]} Bb7 {[%emt 0:00:04]} 7. a4 {[%emt 0:00:49]} a6 {[%emt 0:00:35]} 8. b3 {[%emt 0:04:51]} cxb3 {[%emt 0:00:19]} 9. Qxb3 {[%emt 0:00:09]} Nf6 {[%emt 0:01:32] The position is equal.} 10. Be3 {[%emt 0:03:48]} Nbd7 {[%emt 0:00:23]} 11. Rc1 {[%emt 0:02:10]} Be7 {[%emt 0:01:38]} 12. Nbd2 {[%emt 0:01:45]} O-O {[%emt 0:00:26]} 13. Qb1 {[%emt 0:09:28]} (13. Nc4 $15) 13... Nd5 $17 {[%emt 0:23:04]} 14. Nb3 {[%emt 0:04:56]} Nxe3 {[%emt 0:06:14]} 15. fxe3 {[%emt 0:00:02]} Qb6 {[%emt 0:04:03]} 16. Qc2 {[%emt 0:13:00]} (16. Nfd2 $142) 16... Rac8 {[%emt 0:03:12]} 17. Nc5 {[%emt 0:06:09]} Nxc5 {[%emt 0:00:34]} 18. dxc5 {[%emt 0:00:12]} Qc7 {[%emt 0:00:10]} 19. Nd4 {[%emt 0:01:40]} Bf6 {[%emt 0:04:07]} 20. Qe4 {[%emt 0:04:48]} Rfd8 {[%emt 0:03:45]} 21. axb5 {[%emt 0:03:17]} axb5 {[%emt 0:00:28]} 22. Ra7 {[%emt 0:15:15][%cal Od4c6] [#]} Bxd4 {[%emt 0:14:20]} ({Black should play} 22... Qb8 $1 $19 {[%cal Rb8a7]} 23. Ra3 Rd7) 23. exd4 $15 {[%emt 0:00:18]} Ra8 {[%emt 0:02:07]} 24. Raa1 {[%emt 0:18:02]} Ra4 {[%emt 0:02:32]} 25. Rxa4 {[%emt 0:03:21]} bxa4 {[%emt 0:00:03]} 26. Rc4 $2 {[%emt 0:02:00] This costs White the game.} (26. e3 $17) 26... Qa5 $19 {[%emt 0:02:16]} 27. Qc2 {[%emt 0:02:35] [#]} Ra8 $1 {[%emt 0:01:19] Threatens to win with ...a3.} 28. Kf2 {[%emt 0:00:55]} (28. Qc3 {keeps fighting.} a3 29. Qxa5 Rxa5 30. Rc1) 28... a3 {[%emt 0:00:12] Strongly threatening ...a2.} 29. Qa2 {[%emt 0:00:04]} Ba6 {[%emt 0:00:24]} 30. Rc2 {[%emt 0:00:01]} (30. Rc1 {was the only chance.} Bb5 31. h4) 30... Bb5 {[%emt 0:00:10] Black is clearly winning.} 31. e4 {[%emt 0:01:48]} (31. Be4 $142) 31... Qa4 {[%emt 0:01:15]} (31... Bd3 $142 32. Ke3 Bxc2 33. Qxc2 a2) 32. Rd2 {[%emt 0:01:25]} Qb4 {[%emt 0:00:33] ...Bc4 would now be deadly.} 33. Rd1 {[%emt 0:01:00]} Ba4 {[%emt 0:01:13]} 34. Qd2 {[%emt 0:00:30]} Qxd2+ {[%emt 0:00:24]} 35. Rxd2 {[%emt 0:00:04]} Bb3 {[%emt 0:00:08] Weighted Error Value: White=0.53/Black=0.31.  Loses game:     	White=1     	---        Mistake:       	White=5     	Black=2      Inaccurate:     	White=2     	---        OK:         	White=7     	Black=10     Best:        	White=1     	Black=1      Strong:       	---       	Black=1} 0-1

[Event "26th Triest Festival 2024"]
[Site "Triest"]
[Date "2024.09.02"]
[Round "1.7"]
[White "Lumachi, Gabriele"]
[Black "Dasgupta, Avyukt"]
[Result "1-0"]
[Annotator "TA"]
[ECO "D02"]
[WhiteElo "2440"]
[BlackElo "2154"]
[PlyCount "57"]
[EventDate "2024.09.02"]
[EventType "swiss"]
[EventCountry "ITA"]
[SourceTitle "playchess.com"]
[Source "ChessBase"]
[SourceQuality "1"]
[TimeControl "5400+30"]

{[%evp 9,57,4,7,2,32,34,81,59,86,92,87,95,131,158,191,184,189,167,214,206,240,252,235,235,292,290,316,275,333,318,352,349,789,778,772,778,753,764,868,867,950,931,904,987,997,995,957,933,901,885]} 1. d4 {[%emt 0:00:05]} Nf6 {[%emt 0:00:13]} 2. Nf3 {[%emt 0:00:25]} d5 {[%emt 0:00:04]} 3. c3 {[%emt 0:00:20]} c6 {[%emt 0:00:19]} 4. Qc2 {[%emt 0:00:12]} Bg4 {[%emt 0:02:06]} 5. Ne5 {[%emt 0:00:15]} Bh5 {[%emt 0:04:50]} 6. Qf5 {[%emt 0:00:07]} e6 {[%emt 0:08:19]} 7. Qh3 {[%emt 0:01:38]} Qc8 {[%emt 0:23:59]} (7... Rg8 $14 {is more appropriate.}) 8. Bg5 {[%emt 0:03:54] White is more active. White is better.} Bg6 {[%emt 0:01:39] Inhibits e4.} 9. Nxg6 {[%emt 0:00:19]} fxg6 {[%emt 0:53:31]} 10. Nd2 {[%emt 0:00:38][%cal Oe2e4]} Be7 {[%emt 0:00:00] [#]} 11. e4 $1 {[%emt 0:00:09][%cal Be2e4,Be4e5][%mdl 544]} Qd7 {[%emt 0:00:00]} (11... Nxe4 12. Nxe4) 12. e5 {[%emt 0:06:45]} Ng8 {[%emt 0:00:00]} 13. Be3 {[%emt 0:00:50]} Na6 {[%emt 0:00:00]} (13... Bd8 $142 14. Bd3 Ne7) 14. Bd3 $18 {[%emt 0:00:55]} Nh6 {[%emt 0:00:00]} 15. Bxh6 {[%emt 0:01:23]} gxh6 {[%emt 0:00:00]} 16. Qxh6 {[%emt 0:00:17]} Nc7 {[%emt 0:00:00]} 17. Bxg6+ {[%emt 0:00:38]} Kd8 {[%emt 0:00:00]} 18. Bd3 {[%emt 0:03:46]} Rg8 {[%emt 0:00:00]} 19. O-O {[%emt 0:01:49]} ({Don't play} 19. Qxh7 Qe8 20. g3 c5 $18) 19... Bg5 {[%emt 0:00:00]} 20. Qxh7 {[%emt 0:00:18]} Rg7 {[%emt 0:00:00] [#]} (20... Qxh7 21. Bxh7 Rg7) 21. Qh8+ {[%emt 0:00:51] White is clearly winning.} Ne8 {[%emt 0:00:00]} 22. f4 {[%emt 0:01:37][%cal Bf2f4,Bf4f5][%mdl 32]} Be7 {[%emt 0:00:00]} 23. f5 {[%emt 0:01:44]} Bg5 {[%emt 0:00:00]} 24. f6 {[%emt 0:00:34]} Be3+ {[%emt 0:00:00]} 25. Kh1 {[%emt 0:00:22]} Bxd2 {[%emt 0:00:00]} 26. fxg7 {[%emt 0:00:36]} Qxg7 {[%emt 0:00:00]} 27. Qxg7 {[%emt 0:00:19]} Nxg7 {[%emt 0:00:00]} 28. Rf8+ {[%emt 0:00:05]} Ne8 {[%emt 0:00:00]} 29. Bg6 {[%emt 0:00:09] Black did not feel at home in the position after the opening.   Weighted Error Value: White=0.09 (flawless) /Black=0.35.  Mistake:       	---       	Black=3      Inaccurate:     	---       	Black=3      OK:         	White=7     	Black=2      Best:        	White=2     	Black=1      Brilliant:      	White=1     	---} 1-0